fUST/lending_fUST_20240821
["ID","MTS","AMOUNT","RATE_DAILY","PERIOD"]
[335414744,1724208640715,-175.321559,0.00032218,2]
[335414745,1724208640725,-173.541892,0.00032218,2]
[335414747,1724208640735,-166.406446,0.00032218,2]
[335414749,1724208640744,-173.541893,0.00032218,2]
[335414751,1724208640754,-175.321558,0.00032218,2]
[335414752,1724208640763,-168.673987,0.00032218,2]
[335414753,1724208640775,-500.0,0.00032431,7]
[335414754,1724208640784,-525.0,0.0003258,3]
[335414755,1724208640794,-151.0,0.0003258,3]
[335414756,1724208640804,-150.112233,0.000326,8]
[335414757,1724208640813,-512.37,0.000327,31]
[335414758,1724208640823,-512.37,0.000327,31]
[335414759,1724208640831,-512.37,0.000327,31]
[335414761,1724208640841,-512.37,0.000327,31]
[335414762,1724208640850,-512.37,0.000327,31]
[335414763,1724208640860,-512.37,0.000327,31]
[335414764,1724208640869,-512.37,0.000327,31]
[335414765,1724208640879,-512.37,0.000327,31]
[335414766,1724208640888,-512.37,0.000327,31]
[335414767,1724208640898,-512.37,0.000327,31]
[335414768,1724208640908,-512.37,0.000327,31]
[335414769,1724208640918,-512.37,0.000327,31]
[335414772,1724208640993,-512.37,0.000327,31]
[335414773,1724208641003,-512.37,0.000327,31]
[335414774,1724208641013,-512.37,0.000327,31]
[335414775,1724208641023,-512.37,0.000327,31]
[335414776,1724208641033,-512.37,0.000327,31]
[335414777,1724208641043,-512.37,0.000327,31]
[335414778,1724208641052,-512.37,0.000327,31]
[335414779,1724208641061,-512.37,0.000327,31]
[335414780,1724208641071,-512.37,0.000327,31]
[335414781,1724208641080,-512.37,0.000327,31]
[335414782,1724208641090,-512.37,0.000327,31]
[335414783,1724208641100,-512.37,0.000327,31]
[335414784,1724208641109,-20013.6423549,0.00032747,4]
[335414785,1724208641122,-166.406446,0.00032755,2]
[335414786,1724208641131,-1000.0,0.00032876,2]
[335414787,1724208641140,-6014.61,0.00032876,21]
[335414788,1724208641149,-500.29195024,0.00032998,7]
[335414789,1724208641159,-300.0,0.00033,120]
[335414790,1724208641168,-167.0,0.00033,2]
[335414791,1724208641178,-174.0,0.00033,2]
[335414792,1724208641188,-172.0,0.00033,2]
[335414793,1724208641199,-300.0,0.00033,7]
[335414794,1724208641208,-165.0,0.00033,2]
[335414795,1724208641218,-156.21496732,0.00033234,3]
[335414796,1724208641227,-166.406446,0.00033292,2]
[335414797,1724208641237,-1000.0,0.00033424,2]
[335414798,1724208641246,-150.631,0.00033443,2]
[335414799,1724208641256,-524.6,0.00033443,2]
[335414800,1724208641267,-166.056,0.00033443,2]
[335414801,1724208641276,-239.566,0.00033443,2]
[335414802,1724208641287,-245.769,0.00033443,2]
[335414803,1724208641297,-602.76460417,0.00033534,2]
[335414804,1724208641307,-4408.28061539,0.00033591,2]
[335414805,1724208641317,-525.0,0.00033789,4]
[335414806,1724208641327,-151.0,0.00033789,4]
[335414807,1724208641336,-4408.28061539,0.00033793,2]
[335414808,1724208641345,-150.112233,0.000338,10]
[335414809,1724208641355,-166.406446,0.00033829,2]
[335414810,1724208641364,-173.541892,0.00033829,2]
[335414811,1724208641373,-173.541893,0.00033829,2]
[335414812,1724208641383,-168.673987,0.00033829,2]
[335414813,1724208641392,-1000.0,0.00033972,2]
[335414814,1724208641401,-150.112234,0.00034,8]
[335414815,1724208641411,-300.0,0.00034,9]
[335414816,1724208641420,-150.0,0.00034107,2]
[335414817,1724208641429,-3130.46238256,0.00034111,7]
[335414818,1724208641439,-40027.2847097,0.00034115,4]
[335414819,1724208641448,-2858.62,0.00034124,2]
[335414820,1724208641458,-2858.62,0.00034124,2]
[335414821,1724208641467,-2858.62,0.00034124,2]
[335414822,1724208641476,-2858.62,0.00034124,2]
[335414823,1724208641485,-2858.62,0.00034124,2]
[335414824,1724208641495,-2858.62,0.00034124,2]
[335414825,1724208641504,-2858.62,0.00034124,2]
[335414826,1724208641514,-2858.62,0.00034124,2]
[335414827,1724208641529,-2858.62,0.00034124,2]
[335414828,1724208641539,-2858.62,0.00034124,2]
[335414829,1724208641548,-88888.0,0.00034125,5]
[335414830,1724208641557,-500.0,0.00034173,4]
[335414831,1724208641567,-4408.28061539,0.00034234,2]
[335414832,1724208641577,-20013.6423549,0.00034236,4]
[335414833,1724208641586,-3846.59,0.00034246,21]
[335414834,1724208641596,-3846.59,0.00034246,21]
[335414835,1724208641606,-3846.59,0.00034246,21]
[335414836,1724208641616,-3846.59,0.00034246,21]
[335414837,1724208641625,-3846.59,0.00034246,21]
[335414838,1724208641634,-6014.61,0.00034246,21]
[335414839,1724208641644,-214.648544,0.00034247,2]
[335414840,1724208641654,-5031.84946499,0.00034325,49]
[335414841,1724208641663,-4408.28061539,0.00034386,2]
[335414842,1724208641673,-151.53141612,0.00034415,2]
[335414843,1724208641682,-3846.59,0.00034518,21]
[335414844,1724208641691,-1000.0,0.0003452,2]
[335414845,1724208641701,-172.0,0.00034521,2]
[335414846,1724208641711,-165.0,0.00034521,2]
[335414847,1724208641720,-4408.28061541,0.0003455,2]
[335414848,1724208641730,-160.0,0.00034676,3]
[335414849,1724208641740,-161.03833414,0.00034676,5]
[335414850,1724208641750,-1000.0,0.00034721,4]
[335414851,1724208641760,-639.49474577,0.00034731,2]
[335414852,1724208641770,-500.0,0.000348,2]
[335414853,1724208641780,-1000.0,0.000348,3]
[335414854,1724208641789,-6528.25848385,0.000348,12]
[335414855,1724208641800,-512.37,0.000348,31]
[335414856,1724208641810,-512.37,0.000348,31]
[335414857,1724208641820,-512.37,0.000348,31]
[335414858,1724208641831,-512.37,0.000348,31]
[335414859,1724208641841,-512.37,0.000348,31]
[335414860,1724208641850,-512.37,0.000348,31]
[335414861,1724208641860,-512.37,0.000348,31]
[335414862,1724208641870,-512.37,0.000348,31]
[335414863,1724208641879,-512.37,0.000348,31]
[335414864,1724208641888,-512.37,0.000348,31]
[335414865,1724208641898,-512.37,0.000348,31]
[335414866,1724208641908,-512.37,0.000348,31]
[335414867,1724208641921,-512.37,0.000348,31]
[335414868,1724208641932,-512.37,0.000348,31]
[335414869,1724208641943,-512.37,0.000348,31]
[335414870,1724208641954,-512.37,0.000348,31]
[335414871,1724208641963,-932.38774276,0.0003482,7]
[335414872,1724208641973,-33982.55526602,0.0003482,9]
[335414873,1724208641982,-20013.6423549,0.0003482,4]
[335414874,1724208641992,-3846.59,0.0003483,21]
[335414875,1724208642002,-3846.59,0.0003483,21]
[335414876,1724208642011,-20695.43617569,0.00034831,120]
[335414877,1724208642022,-196.50133473,0.00034831,2]
[335414878,1724208642032,-300.406197,0.000349,17]
[335414879,1724208642041,-20013.6423549,0.0003491,4]
[335414880,1724208642051,-3846.59,0.00034919,21]
[335414881,1724208642061,-3846.59,0.00034919,21]
[335414882,1724208642070,-3846.59,0.0003492,21]
[335414883,1724208642080,-3846.59,0.0003492,21]
[335414884,1724208642090,-3846.59,0.0003492,21]
[335414885,1724208642100,-40027.2847097,0.0003492,4]
[335414886,1724208642109,-20013.6423549,0.00034921,4]
[335414887,1724208642123,-513.62840595,0.00034928,21]
[335414888,1724208642134,-3846.59,0.00034929,21]
[335414889,1724208642144,-726.29783284,0.0003493,2]
[335414890,1724208642153,-185.531989,0.0003493,60]
[335414891,1724208642239,-3846.59,0.0003493,21]
[335414892,1724208642248,-3846.59,0.0003493,21]
[335414893,1724208642257,-3846.59,0.0003493,21]
[335414894,1724208642268,-3846.59,0.0003493,21]
[335414895,1724208642278,-3846.59,0.0003493,21]
[335414896,1724208642288,-3846.59,0.0003493,21]
[335414897,1724208642298,-3846.59,0.0003493,21]
[335414898,1724208642308,-3846.59,0.0003493,21]
[335414899,1724208642318,-3846.59,0.0003493,21]
[335414900,1724208642328,-3846.72581576,0.0003493,21]
[335414901,1724208642338,-67691.48097377,0.00034931,60]
[335414902,1724208642348,-285.3614456,0.00034931,3]
[335414903,1724208642357,-500.0,0.00034931,21]
[335414904,1724208642367,-502.88060833,0.00034931,21]
[335414905,1724208642376,-500.0,0.00034931,3]
[335414906,1724208642386,-500.0,0.00034931,21]
[335414907,1724208642395,-500.0,0.00034931,21]
[335414908,1724208642404,-502.09127346,0.00034931,21]
[335414909,1724208642413,-349.99978269,0.00034931,21]
[335414910,1724208642423,-500.0,0.00034931,21]
[335414911,1724208642432,-527.36735558,0.00034931,21]
[335414912,1724208642442,-500.0,0.00034931,21]
[335414913,1724208642451,-500.0,0.00034931,21]
[335414914,1724208642461,-500.97205487,0.00034931,21]
[335414915,1724208642470,-500.0,0.00034931,21]
[335414916,1724208642479,-500.0,0.00034931,21]
[335414917,1724208642488,-516.28430772,0.00034931,21]
[335414918,1724208642498,-523.81168991,0.00034931,21]
[335414919,1724208642508,-500.0,0.00034931,21]
[335414920,1724208642518,-500.0,0.00034931,21]
[335414921,1724208642528,-502.36808611,0.00034931,21]
[335414922,1724208642538,-500.95368792,0.00034931,21]
[335414923,1724208642548,-513.20266089,0.00034931,7]
[335414924,1724208642557,-508.14000652,0.00034931,21]
[335414925,1724208642567,-500.0,0.00034931,21]
[335414926,1724208642577,-500.0,0.00034931,21]
[335414927,1724208642586,-447.48188467,0.00034931,21]
[335414928,1724208642596,-500.0,0.00034931,21]
[335414929,1724208642605,-500.0,0.00034931,21]
[335414930,1724208642615,-500.49832381,0.00034931,21]
[335414931,1724208642625,-500.0,0.00034931,21]
[335414932,1724208642635,-500.0,0.00034931,21]
[335414933,1724208642644,-500.0,0.00034931,21]
[335414934,1724208642654,-510.80833351,0.00034931,21]
[335414935,1724208642664,-500.0,0.00034931,21]
[335414936,1724208642674,-501.4899103,0.00034931,21]
[335414937,1724208642683,-500.0,0.00034931,21]
[335414938,1724208642693,-500.0,0.00034931,21]
[335414939,1724208642703,-500.0,0.00034931,21]
[335414940,1724208642712,-500.0,0.00034931,21]
[335414941,1724208642721,-496.51352452,0.00034931,21]
[335414942,1724208642731,-502.45153998,0.00034931,21]
[335414943,1724208642740,-500.0,0.00034931,21]
[335414944,1724208642750,-500.0,0.00034931,21]
[335414945,1724208642759,-500.0,0.00034931,21]
[335414946,1724208642770,-507.37645341,0.00034931,21]
[335414947,1724208642779,-500.0,0.00034931,21]
[335414948,1724208642788,-458.5888894,0.00034931,21]
[335414949,1724208642797,-500.0,0.00034931,21]
[335414950,1724208642807,-500.0,0.00034931,21]
[335414951,1724208642816,-510.07004727,0.00034931,21]
[335414952,1724208642826,-503.83428306,0.00034931,21]
[335414953,1724208642835,-500.0,0.00034931,21]
[335414954,1724208642845,-500.0,0.00034931,21]
[335414955,1724208642855,-500.0,0.00034931,21]
[335414956,1724208642864,-509.86328574,0.00034931,21]
[335414957,1724208642874,-500.0,0.00034931,21]
[335414958,1724208642883,-500.0,0.00034931,21]
[335414959,1724208642892,-171.89898129,0.00034931,21]
[335414960,1724208642902,-500.0,0.00034931,21]
[335414961,1724208642911,-500.0,0.00034931,21]
[335414962,1724208642920,-500.0,0.00034931,21]
[335414963,1724208642930,-504.49217672,0.00034931,21]
[335414964,1724208642939,-500.0,0.00034931,21]
[335414965,1724208642948,-500.0,0.00034931,21]
[335414966,1724208642958,-500.0,0.00034931,21]
[335414967,1724208642967,-503.66965386,0.00034931,21]
[335414968,1724208642977,-502.02779454,0.00034931,21]
[335414969,1724208642986,-500.0,0.00034931,21]
[335414970,1724208642995,-500.0,0.00034931,21]
[335414971,1724208643005,-500.0,0.00034931,21]
[335414972,1724208643016,-500.0,0.00034931,21]
[335414973,1724208643026,-500.0,0.00034931,21]
[335414974,1724208643036,-500.0,0.00034931,21]
[335414975,1724208643045,-509.68385562,0.00034931,21]
[335414976,1724208643055,-500.0,0.00034931,21]
[335414977,1724208643064,-500.0,0.00034931,21]
[335414978,1724208643073,-620.62192946,0.00034931,21]
[335414979,1724208643083,-500.0,0.00034931,2]
[335414980,1724208643093,-488.96899008,0.00034931,2]
[335414981,1724208643102,-500.0,0.00034931,21]
[335414982,1724208643113,-500.0,0.00034931,21]
[335414983,1724208643126,-179.95338677,0.00034931,21]
[335414984,1724208643135,-535.16636302,0.00034931,21]
[335414985,1724208643144,-500.0,0.00034931,21]
[335414986,1724208643153,-500.0,0.00034931,21]
[335414987,1724208643163,-503.44098065,0.00034931,21]
[335414988,1724208643173,-500.0,0.00034931,21]
[335414989,1724208643182,-500.0,0.00034931,21]
[335414990,1724208643194,-501.2428091,0.00034931,21]
[335414991,1724208643203,-303.09982745,0.00034931,21]
[335414992,1724208643213,-500.0,0.00034931,21]
[335414993,1724208643222,-500.0,0.00034931,21]
[335414994,1724208643231,-504.31180776,0.00034931,21]
[335414995,1724208643240,-500.0,0.00034931,21]
[335414996,1724208643250,-500.0,0.00034931,21]
[335414997,1724208643259,-500.0,0.00034931,21]
[335414998,1724208643269,-504.08745036,0.00034931,21]
[335414999,1724208643278,-500.0,0.00034931,21]
[335415000,1724208643289,-500.0,0.00034931,21]
[335415001,1724208643298,-501.98272567,0.00034931,21]
[335415002,1724208643384,-500.0,0.00034931,21]
[335415003,1724208643393,-340.59311033,0.00034931,21]
[335415004,1724208643403,-320.51731545,0.00034931,21]
[335415005,1724208643412,-532.5410339,0.00034931,21]
[335415006,1724208643422,-500.0,0.00034931,21]
[335415007,1724208643431,-500.0,0.00034931,21]
[335415008,1724208643440,-500.0,0.00034931,21]
[335415009,1724208643449,-500.0,0.00034931,21]
[335415010,1724208643459,-525.09816573,0.00034931,21]
[335415011,1724208643468,-500.0,0.00034931,21]
[335415012,1724208643478,-500.0,0.00034931,21]
[335415013,1724208643487,-500.0,0.00034931,21]
[335415014,1724208643497,-500.0,0.00034931,21]
[335415015,1724208643506,-228.76685272,0.00034931,21]
[335415016,1724208643516,-504.4141236,0.00034931,21]
[335415017,1724208643526,-504.03604153,0.00034931,21]
[335415018,1724208643535,-502.17523358,0.00034931,21]
[335415019,1724208643544,-500.0,0.00034931,21]
[335415020,1724208643553,-500.0,0.00034931,21]
[335415021,1724208643563,-502.76002454,0.00034931,21]
[335415022,1724208643572,-500.0,0.00034931,21]
[335415023,1724208643581,-500.0,0.00034931,21]
[335415024,1724208643591,-587.8549021,0.00034931,21]
[335415025,1724208643600,-500.0,0.00034931,21]
[335415026,1724208643610,-500.0,0.00034931,21]
[335415027,1724208643619,-500.0,0.00034931,21]
[335415028,1724208643629,-500.0,0.00034931,21]
[335415029,1724208643638,-504.15183715,0.00034931,21]
[335415030,1724208643648,-500.0,0.00034931,21]
[335415031,1724208643657,-506.73678866,0.00034931,21]
[335415032,1724208643666,-570.81876766,0.00034931,21]
[335415033,1724208643676,-500.0,0.00034931,21]
[335415034,1724208643685,-500.0,0.00034931,21]
[335415035,1724208643694,-500.0,0.00034931,21]
[335415037,1724208643703,-500.0,0.00034931,21]
[335415039,1724208643712,-510.94549742,0.00034931,21]
[335415041,1724208643722,-504.31607402,0.00034931,21]
[335415042,1724208643731,-500.0,0.00034931,21]
[335415043,1724208643741,-500.0,0.00034931,21]
[335415044,1724208643751,-500.0,0.00034931,21]
[335415045,1724208643759,-504.00048864,0.00034931,21]
[335415046,1724208643771,-500.0,0.00034931,21]
[335415047,1724208643781,-523.12200408,0.00034931,21]
[335415048,1724208643790,-546.75,0.00034931,21]
[335415049,1724208643800,-546.75,0.00034931,21]
[335415050,1724208643810,-546.75,0.00034931,21]
[335415051,1724208643819,-546.75,0.00034931,21]
[335415052,1724208643829,-546.75,0.00034931,21]
[335415053,1724208643838,-546.75,0.00034931,21]
[335415054,1724208643848,-546.75,0.00034931,21]
[335415055,1724208643857,-500.0,0.00034931,21]
[335415056,1724208643878,-546.75,0.00034931,21]
[335415057,1724208643896,-500.0,0.00034931,21]
[335415058,1724208643912,-546.75,0.00034931,21]
[335415059,1724208643933,-500.0,0.00034931,21]
[335415060,1724208643953,-546.75,0.00034931,21]
[335415061,1724208643969,-500.0,0.00034931,21]
[335415062,1724208643988,-546.75,0.00034931,21]
[335415063,1724208644005,-468.96856014,0.00034931,21]
[335415064,1724208644022,-546.75,0.00034931,21]
[335415065,1724208644044,-546.75,0.00034931,21]
[335415066,1724208644063,-1083.81,0.00034931,5]
[335415067,1724208644083,-546.75,0.00034931,21]
[335415068,1724208644095,-1083.81,0.00034931,5]
[335415069,1724208644111,-1083.81,0.00034931,5]
[335415070,1724208644127,-546.75,0.00034931,21]
[335415071,1724208644142,-1083.81,0.00034931,5]
[335415072,1724208644157,-1083.81,0.00034931,5]
[335415073,1724208644171,-546.75,0.00034931,21]
[335415074,1724208644184,-546.75,0.00034931,21]
[335415075,1724208644199,-546.75,0.00034931,21]
[335415076,1724208644214,-1083.81,0.00034931,5]
[335415077,1724208644228,-546.75,0.00034931,21]
[335415078,1724208644244,-1083.81,0.00034931,5]
[335415079,1724208644257,-546.75,0.00034931,21]
[335415080,1724208644272,-1083.81,0.00034931,5]
[335415081,1724208644287,-546.75,0.00034931,21]
[335415082,1724208644302,-1083.81,0.00034931,5]
[335415083,1724208644316,-1083.81,0.00034931,5]
[335415084,1724208644329,-500.0,0.00034931,21]
[335415085,1724208644343,-546.75,0.00034931,21]
[335415086,1724208644356,-500.0,0.00034931,21]
[335415087,1724208644370,-1083.81,0.00034931,5]
[335415088,1724208644384,-546.75,0.00034931,21]
[335415089,1724208644399,-501.97247459,0.00034931,21]
[335415091,1724208644413,-500.0,0.00034931,21]
[335415093,1724208644427,-1083.81,0.00034931,5]
[335415094,1724208644442,-546.87243127,0.00034931,21]
[335415095,1724208644456,-1083.81,0.00034931,5]
[335415096,1724208644470,-500.0,0.00034931,21]
[335415097,1724208644484,-434.142531,0.00034931,21]
[335415098,1724208644499,-1083.81,0.00034931,5]
[335415099,1724208644512,-1083.81,0.00034931,5]
[335415100,1724208644529,-1083.81,0.00034931,5]
[335415101,1724208644544,-1083.81,0.00034931,5]
[335415102,1724208644559,-1083.81,0.00034931,5]
[335415103,1724208644575,-1083.81,0.00034931,5]
[335415104,1724208644586,-1083.81,0.00034931,5]
[335415105,1724208644595,-1083.81,0.00034931,5]
[335415106,1724208644605,-1083.81,0.00034931,5]
[335415107,1724208644615,-1083.81,0.00034931,5]
[335415108,1724208644739,-1083.824,0.00034931,5]
[335415109,1724208644757,-500.0,0.00034931,21]
[335415110,1724208644771,-500.0,0.00034931,21]
[335415111,1724208644781,-500.0,0.00034931,21]
[335415112,1724208644791,-500.0,0.00034931,21]
[335415113,1724208644801,-500.0,0.00034931,21]
[335415114,1724208644811,-500.0,0.00034931,21]
[335415115,1724208644821,-500.0,0.00034931,21]
[335415116,1724208644831,-500.0,0.00034931,21]
[335415117,1724208644841,-500.0,0.00034931,21]
[335415118,1724208644851,-500.0,0.00034931,21]
[335415119,1724208644862,-500.0,0.00034931,21]
[335415120,1724208644871,-500.0,0.00034931,21]
[335415121,1724208644881,-500.0,0.00034931,21]
[335415122,1724208644891,-500.0,0.00034931,21]
[335415123,1724208644900,-500.0,0.00034931,21]
[335415124,1724208644910,-500.0,0.00034931,21]
[335415125,1724208644920,-500.0,0.00034931,21]
[335415126,1724208644929,-500.0,0.00034931,21]
[335415127,1724208644939,-500.0,0.00034931,21]
[335415128,1724208644948,-500.0,0.00034931,21]
[335415129,1724208644958,-500.0,0.00034931,21]
[335415130,1724208644968,-500.0,0.00034931,21]
[335415131,1724208644978,-500.0,0.00034931,21]
[335415132,1724208644988,-500.0,0.00034931,21]
[335415133,1724208644997,-512.43670089,0.00034931,21]
[335415134,1724208645007,-500.0,0.00034931,21]
[335415135,1724208645019,-500.0,0.00034931,21]
[335415136,1724208645029,-500.0,0.00034931,21]
[335415137,1724208645039,-500.0,0.00034931,21]
[335415138,1724208645048,-386.58661488,0.00034931,21]
[335415139,1724208645058,-500.0,0.00034931,21]
[335415140,1724208645068,-254.71601146,0.00034931,21]
[335415141,1724208645077,-500.0,0.00034931,21]
[335415142,1724208645086,-500.0,0.00034931,21]
[335415143,1724208645096,-500.0,0.00034931,21]
[335415144,1724208645106,-500.0,0.00034931,21]
[335415145,1724208645116,-500.0,0.00034931,21]
[335415146,1724208645127,-500.0,0.00034931,21]
[335415147,1724208645136,-505.4839967,0.00034931,21]
[335415148,1724208645146,-500.0,0.00034931,21]
[335415149,1724208645155,-500.0,0.00034931,21]
[335415150,1724208645165,-500.0,0.00034931,21]
[335415151,1724208645175,-504.43201731,0.00034931,21]
[335415152,1724208645184,-500.0,0.00034931,21]
[335415153,1724208645193,-500.0,0.00034931,21]
[335415154,1724208645203,-500.0,0.00034931,21]
[335415155,1724208645213,-500.0,0.00034931,21]
[335415156,1724208645222,-500.0,0.00034931,21]
[335415157,1724208645231,-500.0,0.00034931,21]
[335415158,1724208645241,-501.64906622,0.00034931,21]
[335415159,1724208645250,-500.0,0.00034931,21]
[335415160,1724208645259,-521.53329865,0.00034931,21]
[335415161,1724208645269,-500.0,0.00034931,21]
[335415162,1724208645279,-500.0,0.00034931,21]
[335415163,1724208645290,-500.0,0.00034931,21]
[335415164,1724208645299,-500.0,0.00034931,21]
[335415165,1724208645309,-500.0,0.00034931,21]
[335415166,1724208645318,-500.0,0.00034931,21]
[335415167,1724208645327,-502.34065345,0.00034931,21]
[335415168,1724208645337,-500.0,0.00034931,21]
[335415169,1724208645347,-501.42283431,0.00034931,21]
[335415170,1724208645357,-500.0,0.00034931,21]
[335415171,1724208645367,-502.72013266,0.00034931,21]
[335415172,1724208645377,-500.0,0.00034931,21]
[335415173,1724208645386,-500.0,0.00034931,21]
[335415174,1724208645395,-500.0,0.00034931,21]
[335415175,1724208645404,-500.0,0.00034931,21]
[335415176,1724208645413,-427.48466484,0.00034931,21]
[335415177,1724208645424,-500.0,0.00034931,21]
[335415178,1724208645433,-500.0,0.00034931,21]
[335415179,1724208645443,-506.35626711,0.00034931,21]
[335415180,1724208645452,-500.0,0.00034931,21]
[335415181,1724208645463,-589.60609884,0.00034931,21]
[335415182,1724208645472,-500.0,0.00034931,21]
[335415183,1724208645482,-500.0,0.00034931,21]
[335415184,1724208645491,-500.0,0.00034931,21]
[335415185,1724208645500,-500.0,0.00034931,21]
[335415186,1724208645510,-500.0,0.00034931,21]
[335415187,1724208645521,-505.4026656,0.00034931,21]
[335415188,1724208645531,-500.0,0.00034931,21]
[335415189,1724208645540,-500.0,0.00034931,21]
[335415190,1724208645550,-500.0,0.00034931,21]
[335415191,1724208645559,-500.0,0.00034931,21]
[335415192,1724208645568,-630.51354603,0.00034931,21]
[335415193,1724208645577,-500.0,0.00034931,21]
[335415194,1724208645587,-428.02784057,0.00034931,21]
[335415195,1724208645596,-500.0,0.00034931,21]
[335415196,1724208645605,-500.0,0.00034931,21]
[335415197,1724208645615,-500.0,0.00034931,21]
[335415198,1724208645624,-500.0,0.00034931,21]
[335415199,1724208645634,-500.0,0.00034931,21]
[335415200,1724208645643,-500.0,0.00034931,21]
[335415201,1724208645653,-502.09252995,0.00034931,21]
[335415202,1724208645662,-500.0,0.00034931,21]
[335415203,1724208645672,-500.0,0.00034931,21]
[335415204,1724208645683,-500.0,0.00034931,21]
[335415205,1724208645694,-500.0,0.00034931,21]
[335415206,1724208645706,-205.99580125,0.00034931,21]
[335415207,1724208645715,-500.0,0.00034931,21]
[335415208,1724208645725,-500.0,0.00034931,21]
[335415209,1724208645736,-500.0,0.00034931,21]
[335415210,1724208645747,-505.04434631,0.00034931,21]
[335415211,1724208645757,-500.0,0.00034931,21]
[335415212,1724208645767,-500.0,0.00034931,21]
[335415213,1724208645778,-500.0,0.00034931,21]
[335415214,1724208645787,-500.0,0.00034931,21]
[335415215,1724208645797,-500.0,0.00034931,21]
[335415216,1724208645806,-501.98542401,0.00034931,21]
[335415217,1724208645815,-500.0,0.00034931,21]
[335415218,1724208645826,-500.0,0.00034931,21]
[335415219,1724208645838,-408.35623803,0.00034931,21]
[335415220,1724208645849,-500.0,0.00034931,21]
[335415221,1724208645858,-502.96750783,0.00034931,21]
[335415222,1724208645867,-500.0,0.00034931,21]
[335415223,1724208645877,-502.99333218,0.00034931,21]
[335415224,1724208645887,-500.0,0.00034931,21]
[335415225,1724208645896,-500.0,0.00034931,21]
[335415226,1724208645906,-500.0,0.00034931,21]
[335415227,1724208645916,-500.0,0.00034931,21]
[335415228,1724208645926,-500.0,0.00034931,21]
[335415229,1724208645935,-500.0,0.00034931,21]
[335415230,1724208645947,-500.0,0.00034931,21]
[335415231,1724208645959,-505.31825045,0.00034931,21]
[335415232,1724208645968,-500.0,0.00034931,21]
[335415233,1724208645978,-500.0,0.00034931,21]
[335415234,1724208645988,-500.0,0.00034931,21]
[335415235,1724208645997,-500.0,0.00034931,21]
[335415236,1724208646006,-500.0,0.00034931,21]
[335415237,1724208646015,-201.82624894,0.00034931,21]
[335415238,1724208646025,-515.07370824,0.00034931,21]
[335415239,1724208646034,-500.0,0.00034931,21]
[335415240,1724208646043,-500.0,0.00034931,21]
[335415241,1724208646054,-500.0,0.00034931,21]
[335415242,1724208646064,-500.0,0.00034931,21]
[335415243,1724208646074,-500.0,0.00034931,21]
[335415244,1724208646083,-500.0,0.00034931,21]
[335415245,1724208646093,-500.0,0.00034931,21]
[335415246,1724208646102,-505.24144156,0.00034931,21]
[335415247,1724208646112,-307.40646694,0.00034931,21]
[335415248,1724208646123,-500.0,0.00034931,21]
[335415249,1724208646133,-500.0,0.00034931,21]
[335415250,1724208646143,-500.0,0.00034931,21]
[335415251,1724208646152,-500.0,0.00034931,21]
[335415252,1724208646162,-500.0,0.00034931,21]
[335415253,1724208646172,-500.0,0.00034931,21]
[335415254,1724208646183,-500.0,0.00034931,21]